[Event "Early-Titled-Tuesday-Blitz-July-09-2024"]
[Site "Chess.com"]
[Date "2024.07.09"]
[Round "10"]
[White "BobbyFischer1508"]
[Black "ansko1999"]
[Result "1-0"]
[WhiteElo "2474"]
[BlackElo "2615"]
[TimeControl "180+1"]
[EndTime "9:56:15 PDT"]
[Termination "BobbyFischer1508 won by checkmate"]

1. b3 {[%clk 0:03:00.9]} 1... b6 {[%clk 0:02:59.2]} 2. Bb2 {[%clk 0:03:00.9]}
2... Bb7 {[%clk 0:03:00.1]} 3. Nf3 {[%clk 0:03:00.8]} 3... Nf6 {[%clk
0:03:00.4]} 4. g3 {[%clk 0:02:59.7]} 4... g6 {[%clk 0:03:00.9]} 5. Bg2 {[%clk
0:02:59.6]} 5... Bg7 {[%clk 0:03:01.5]} 6. O-O {[%clk 0:02:59.7]} 6... O-O
{[%clk 0:03:02.2]} 7. d3 {[%clk 0:02:59.9]} 7... c5 {[%clk 0:03:00.5]} 8. Nbd2
{[%clk 0:02:59.6]} 8... d5 {[%clk 0:02:58.9]} 9. e3 {[%clk 0:02:53.8]} 9... Nc6
{[%clk 0:02:55.5]} 10. a3 {[%clk 0:02:53.4]} 10... Qc7 {[%clk 0:02:50.6]} 11. c4
{[%clk 0:02:49.7]} 11... Rad8 {[%clk 0:02:47.9]} 12. Qc2 {[%clk 0:02:46.7]}
12... e5 {[%clk 0:02:43.8]} 13. cxd5 {[%clk 0:02:46.4]} 13... Nxd5 {[%clk
0:02:43.9]} 14. Rfd1 {[%clk 0:02:44.8]} 14... Rfe8 {[%clk 0:02:43.8]} 15. Rac1
{[%clk 0:02:43.6]} 15... h6 {[%clk 0:02:43.1]} 16. Nc4 {[%clk 0:02:24.9]} 16...
Qe7 {[%clk 0:02:33.4]} 17. Qb1 {[%clk 0:02:16.9]} 17... Ba8 {[%clk 0:02:22.5]}
18. Ba1 {[%clk 0:02:09.3]} 18... Kh7 {[%clk 0:02:19.3]} 19. Ne1 {[%clk
0:01:49.9]} 19... f5 {[%clk 0:02:13.7]} 20. Nc2 {[%clk 0:01:45.2]} 20... Bf6
{[%clk 0:01:34.5]} 21. e4 {[%clk 0:01:37.5]} 21... Nc7 {[%clk 0:01:29.9]} 22. b4
{[%clk 0:01:31]} 22... fxe4 {[%clk 0:01:20.5]} 23. Bxe4 {[%clk 0:01:28.1]} 23...
Nd4 {[%clk 0:01:14.9]} 24. Nxd4 {[%clk 0:01:12.3]} 24... Bxe4 {[%clk 0:01:00.5]}
25. dxe4 {[%clk 0:01:10.7]} 25... cxd4 {[%clk 0:00:59.4]} 26. b5 {[%clk
0:01:04.5]} 26... Bg5 {[%clk 0:00:57.6]} 27. Rc2 {[%clk 0:01:00.6]} 27... Rf8
{[%clk 0:00:52.6]} 28. Rd3 {[%clk 0:00:58.8]} 28... Ne6 {[%clk 0:00:50.2]} 29.
Nxe5 {[%clk 0:00:43.1]} 29... Nc5 {[%clk 0:00:49.2]} 30. Rxd4 {[%clk 0:00:43.4]}
30... Rxd4 {[%clk 0:00:23.6]} 31. Bxd4 {[%clk 0:00:42.2]} 31... Nxe4 {[%clk
0:00:24.3]} 32. Re2 {[%clk 0:00:34.1]} 32... Nd2 {[%clk 0:00:21.6]} 33. Qxg6+
{[%clk 0:00:32.8]} 33... Kh8 {[%clk 0:00:21.6]} 34. Nf7# {[%clk 0:00:23.9]} 1-0

[Event "Early-Titled-Tuesday-Blitz-July-09-2024"]
[Site "Chess.com"]
[Date "2024.07.09"]
[Round "10"]
[White "Massakru"]
[Black "FrenchPlayer2203"]
[Result "1-0"]
[WhiteElo "2382"]
[BlackElo "2278"]
[TimeControl "180+1"]
[EndTime "9:56:15 PDT"]
[Termination "Massakru won on time"]

1. e4 {[%clk 0:03:00.9]} 1... e6 {[%clk 0:02:59.5]} 2. d4 {[%clk 0:03:00.6]}
2... d5 {[%clk 0:02:59.3]} 3. Nc3 {[%clk 0:03:01.3]} 3... Nf6 {[%clk 0:02:58.6]}
4. e5 {[%clk 0:03:01.3]} 4... Nfd7 {[%clk 0:02:58.1]} 5. f4 {[%clk 0:03:01.8]}
5... c5 {[%clk 0:02:57.7]} 6. Nf3 {[%clk 0:03:02.3]} 6... Nc6 {[%clk 0:02:57.5]}
7. Be3 {[%clk 0:03:02.8]} 7... cxd4 {[%clk 0:02:57.4]} 8. Nxd4 {[%clk
0:03:02.7]} 8... Qb6 {[%clk 0:02:57.4]} 9. a3 {[%clk 0:03:01.6]} 9... Nxd4
{[%clk 0:02:34.7]} 10. Bxd4 {[%clk 0:03:01.1]} 10... Bc5 {[%clk 0:02:34.5]} 11.
Na4 {[%clk 0:02:59.7]} 11... Qa5+ {[%clk 0:02:32.8]} 12. c3 {[%clk 0:02:59.3]}
12... Bxd4 {[%clk 0:02:27.3]} 13. Qxd4 {[%clk 0:03:00.2]} 13... b6 {[%clk
0:02:19.6]} 14. Qb4 {[%clk 0:02:55.2]} 14... Qxb4 {[%clk 0:01:55.8]} 15. axb4
{[%clk 0:02:56.1]} 15... O-O {[%clk 0:01:55.6]} 16. Bb5 {[%clk 0:02:55.5]} 16...
f6 {[%clk 0:01:46.4]} 17. exf6 {[%clk 0:02:46.5]} 17... Nxf6 {[%clk 0:01:35.6]}
18. O-O {[%clk 0:01:52.8]} 18... Bd7 {[%clk 0:01:26]} 19. Bxd7 {[%clk
0:01:47.5]} 19... Nxd7 {[%clk 0:01:25.5]} 20. Rae1 {[%clk 0:01:46.5]} 20... Rf6
{[%clk 0:01:14.4]} 21. g3 {[%clk 0:01:38.8]} 21... Rc8 {[%clk 0:01:09.2]} 22.
Ra1 {[%clk 0:01:34.5]} 22... Rc7 {[%clk 0:00:45]} 23. Rfe1 {[%clk 0:01:30.2]}
23... Kf7 {[%clk 0:00:42]} 24. Re3 {[%clk 0:01:25.8]} 24... Ke7 {[%clk
0:00:27.1]} 25. Kg2 {[%clk 0:01:24.3]} 25... Kd6 {[%clk 0:00:25]} 26. b3 {[%clk
0:01:15.2]} 26... b5 {[%clk 0:00:13.7]} 27. Nb2 {[%clk 0:01:15]} 27... Nb6
{[%clk 0:00:13]} 28. Ra5 {[%clk 0:01:07.4]} 28... Kc6 {[%clk 0:00:08.9]} 29. Nd3
{[%clk 0:01:07.5]} 29... Nd7 {[%clk 0:00:05.8]} 30. Ra6+ {[%clk 0:01:04]} 30...
Nb6 {[%clk 0:00:03.3]} 31. Nc5 {[%clk 0:01:02.2]} 31... Re7 {[%clk 0:00:01.8]}
32. Re5 {[%clk 0:00:48.8]} 32... g6 {[%clk 0:00:01.5]} 33. Kf3 {[%clk
0:00:46.5]} 33... h5 {[%clk 0:00:01.1]} 34. h3 {[%clk 0:00:46.3]} 1-0

[Event "Early-Titled-Tuesday-Blitz-July-09-2024"]
[Site "Chess.com"]
[Date "2024.07.09"]
[Round "10"]
[White "kadirsoria"]
[Black "WilsonPalencia21"]
[Result "0-1"]
[WhiteElo "2225"]
[BlackElo "2574"]
[TimeControl "180+1"]
[EndTime "9:56:17 PDT"]
[Termination "WilsonPalencia21 won on time"]

1. e4 {[%clk 0:02:58.9]} 1... c5 {[%clk 0:02:59.9]} 2. Nf3 {[%clk 0:02:58.2]}
2... d6 {[%clk 0:03:00]} 3. d4 {[%clk 0:02:57.6]} 3... cxd4 {[%clk 0:03:00.4]}
4. Nxd4 {[%clk 0:02:58.3]} 4... Nf6 {[%clk 0:03:00.8]} 5. Nc3 {[%clk 0:02:58.2]}
5... g6 {[%clk 0:03:01.3]} 6. Be3 {[%clk 0:02:58]} 6... Bg7 {[%clk 0:03:01.9]}
7. f3 {[%clk 0:02:58.3]} 7... O-O {[%clk 0:03:02.8]} 8. Qd2 {[%clk 0:02:58.8]}
8... Nc6 {[%clk 0:03:03.5]} 9. Bc4 {[%clk 0:02:59.3]} 9... Ne5 {[%clk
0:03:03.7]} 10. Bb3 {[%clk 0:02:59.1]} 10... Bd7 {[%clk 0:03:04.2]} 11. h4
{[%clk 0:02:58.8]} 11... h5 {[%clk 0:03:03.8]} 12. O-O-O {[%clk 0:02:58.2]}
12... Rc8 {[%clk 0:03:04.4]} 13. Bg5 {[%clk 0:02:52.6]} 13... Rc5 {[%clk
0:03:03.9]} 14. Kb1 {[%clk 0:02:47.3]} 14... Re8 {[%clk 0:03:01.6]} 15. Bh6
{[%clk 0:02:15.9]} 15... Bh8 {[%clk 0:02:53.5]} 16. g4 {[%clk 0:02:13.8]} 16...
Qa5 {[%clk 0:02:28.5]} 17. gxh5 {[%clk 0:01:42.2]} 17... Nxh5 {[%clk 0:02:27.8]}
18. Rhg1 {[%clk 0:01:19]} 18... Kh7 {[%clk 0:02:24.2]} 19. Bg5 {[%clk
0:00:37.5]} 19... e6 {[%clk 0:02:14.3]} 20. f4 {[%clk 0:00:25.7]} 20... Nc4
{[%clk 0:02:10.7]} 21. Bxc4 {[%clk 0:00:24.1]} 21... Rxc4 {[%clk 0:02:11.6]} 22.
Nb3 {[%clk 0:00:20.4]} 22... Qc7 {[%clk 0:01:28.4]} 23. Qxd6 {[%clk 0:00:16.5]}
23... Qxd6 {[%clk 0:01:27.3]} 24. Rxd6 {[%clk 0:00:17.4]} 24... Bc6 {[%clk
0:01:19]} 25. Na5 {[%clk 0:00:14.3]} 25... Rxc3 {[%clk 0:01:10.9]} 26. bxc3
{[%clk 0:00:13.7]} 26... Bxe4 {[%clk 0:01:11.2]} 27. Rd7 {[%clk 0:00:11.7]}
27... Kg8 {[%clk 0:01:07.4]} 28. Rd8 {[%clk 0:00:06.8]} 28... Rxd8 {[%clk
0:01:07.1]} 29. Bxd8 {[%clk 0:00:06.8]} 29... Nxf4 {[%clk 0:01:07.2]} 30. Bg5
{[%clk 0:00:04.4]} 30... Ne2 {[%clk 0:01:01.7]} 31. Re1 {[%clk 0:00:03.9]} 31...
Nxc3+ {[%clk 0:01:01.6]} 32. Kc1 {[%clk 0:00:03.5]} 32... Nxa2+ {[%clk
0:00:58.1]} 33. Kd1 {[%clk 0:00:02.8]} 33... Nc3+ {[%clk 0:00:55]} 34. Kd2
{[%clk 0:00:02.3]} 34... Bd5 {[%clk 0:00:54.5]} 0-1

[Event "Early-Titled-Tuesday-Blitz-July-09-2024"]
[Site "Chess.com"]
[Date "2024.07.09"]
[Round "10"]
[White "Djager97"]
[Black "banjadvorovi"]
[Result "1-0"]
[WhiteElo "2627"]
[BlackElo "2453"]
[TimeControl "180+1"]
[EndTime "9:56:23 PDT"]
[Termination "Djager97 won by checkmate"]

1. e4 {[%clk 0:03:00.9]} 1... c5 {[%clk 0:02:57.9]} 2. Nf3 {[%clk 0:03:00.8]}
2... Nc6 {[%clk 0:02:56.2]} 3. d4 {[%clk 0:03:00.2]} 3... cxd4 {[%clk
0:02:55.9]} 4. Nxd4 {[%clk 0:03:00.8]} 4... d6 {[%clk 0:02:56.5]} 5. Nc3 {[%clk
0:03:00.7]} 5... Nf6 {[%clk 0:02:56.1]} 6. Bg5 {[%clk 0:02:59.7]} 6... Qa5
{[%clk 0:02:46.6]} 7. Bxf6 {[%clk 0:02:58.2]} 7... gxf6 {[%clk 0:02:46.8]} 8.
Nb3 {[%clk 0:02:56.6]} 8... Qd8 {[%clk 0:02:46]} 9. Qh5 {[%clk 0:02:55.7]} 9...
Be6 {[%clk 0:02:39.6]} 10. O-O-O {[%clk 0:02:49.7]} 10... Bxb3 {[%clk
0:02:27.6]} 11. axb3 {[%clk 0:02:50.6]} 11... Qa5 {[%clk 0:02:27.5]} 12. Bb5
{[%clk 0:02:29.6]} 12... O-O-O {[%clk 0:02:19.8]} 13. Kb1 {[%clk 0:02:13.7]}
13... a6 {[%clk 0:02:09.5]} 14. Qh3+ {[%clk 0:02:12.5]} 14... e6 {[%clk
0:02:06]} 15. Bxc6 {[%clk 0:02:08.5]} 15... bxc6 {[%clk 0:02:06.9]} 16. f4
{[%clk 0:02:04.3]} 16... d5 {[%clk 0:02:03.3]} 17. f5 {[%clk 0:01:56.4]} 17...
e5 {[%clk 0:02:00.2]} 18. exd5 {[%clk 0:01:50]} 18... cxd5 {[%clk 0:02:00.3]}
19. Nxd5 {[%clk 0:01:12.9]} 19... Rxd5 {[%clk 0:01:24.3]} 20. Qf3 {[%clk
0:01:13]} 20... Rb5 {[%clk 0:01:02.2]} 21. Qc6+ {[%clk 0:00:54.5]} 21... Kb8
{[%clk 0:01:01.3]} 22. Qxf6 {[%clk 0:00:42]} 22... Bg7 {[%clk 0:00:44.2]} 23.
Qxg7 {[%clk 0:00:37.8]} 23... Rc8 {[%clk 0:00:44.6]} 24. Qxf7 {[%clk 0:00:29.2]}
24... Rbc5 {[%clk 0:00:42.9]} 25. Rd7 {[%clk 0:00:24.7]} 25... Qb6 {[%clk
0:00:19.9]} 26. Rc1 {[%clk 0:00:25.2]} 26... Rxc2 {[%clk 0:00:11]} 27. Rxc2
{[%clk 0:00:24.9]} 27... Qg1+ {[%clk 0:00:11.7]} 28. Ka2 {[%clk 0:00:25.2]}
28... Rxc2 {[%clk 0:00:12.3]} 29. Qf8+ {[%clk 0:00:22.9]} 29... Rc8 {[%clk
0:00:11.4]} 30. Qd6+ {[%clk 0:00:23.4]} 30... Ka8 {[%clk 0:00:09.9]} 31. Qxa6+
{[%clk 0:00:23.6]} 31... Kb8 {[%clk 0:00:10.2]} 32. Qb7# {[%clk 0:00:23.7]} 1-0

[Event "Early-Titled-Tuesday-Blitz-July-09-2024"]
[Site "Chess.com"]
[Date "2024.07.09"]
[Round "10"]
[White "DarkPassenger007"]
[Black "JanMur7"]
[Result "0-1"]
[WhiteElo "2212"]
[BlackElo "2292"]
[TimeControl "180+1"]
[EndTime "9:56:24 PDT"]
[Termination "JanMur7 won by checkmate"]

1. e4 {[%clk 0:03:00.9]} 1... g6 {[%clk 0:02:59.5]} 2. d4 {[%clk 0:03:00.4]}
2... Bg7 {[%clk 0:02:59.9]} 3. c3 {[%clk 0:03:00.1]} 3... c5 {[%clk 0:03:00.5]}
4. Nf3 {[%clk 0:02:55]} 4... cxd4 {[%clk 0:03:00.6]} 5. cxd4 {[%clk 0:02:55]}
5... d5 {[%clk 0:03:01.1]} 6. e5 {[%clk 0:02:47.9]} 6... Nc6 {[%clk 0:03:01.1]}
7. Nc3 {[%clk 0:02:43.8]} 7... f6 {[%clk 0:03:00.6]} 8. Bb5 {[%clk 0:02:39]}
8... Bg4 {[%clk 0:02:56.4]} 9. O-O {[%clk 0:02:22.3]} 9... fxe5 {[%clk
0:02:54.9]} 10. dxe5 {[%clk 0:02:19.8]} 10... e6 {[%clk 0:02:53]} 11. Re1 {[%clk
0:02:15]} 11... Ne7 {[%clk 0:02:45.4]} 12. h3 {[%clk 0:02:09.9]} 12... Bxf3
{[%clk 0:02:44.4]} 13. Qxf3 {[%clk 0:02:09.2]} 13... Nf5 {[%clk 0:02:44.7]} 14.
g4 {[%clk 0:01:12.1]} 14... Nh4 {[%clk 0:02:23.2]} 15. Qf4 {[%clk 0:01:05.2]}
15... Rf8 {[%clk 0:02:04.6]} 16. Qa4 {[%clk 0:00:53.3]} 16... Nf3+ {[%clk
0:02:01.7]} 17. Kf1 {[%clk 0:00:52.5]} 17... Nxe1 {[%clk 0:01:54.6]} 18. Bxc6+
{[%clk 0:00:50]} 18... bxc6 {[%clk 0:01:55.5]} 19. Qxc6+ {[%clk 0:00:50.9]}
19... Kf7 {[%clk 0:01:54.8]} 20. Qb7+ {[%clk 0:00:45.4]} 20... Qe7 {[%clk
0:01:53.4]} 21. Qxe7+ {[%clk 0:00:44.4]} 21... Kxe7 {[%clk 0:01:54.3]} 22. Bg5+
{[%clk 0:00:44.8]} 22... Kd7 {[%clk 0:01:51.7]} 23. Rxe1 {[%clk 0:00:44.4]}
23... Rab8 {[%clk 0:01:44.4]} 24. b3 {[%clk 0:00:37]} 24... Rbc8 {[%clk
0:01:32]} 25. Na4 {[%clk 0:00:35.2]} 25... Rc2 {[%clk 0:01:30.8]} 26. f4 {[%clk
0:00:30.4]} 26... h6 {[%clk 0:01:19.5]} 27. Re2 {[%clk 0:00:18.2]} 27... Rxe2
{[%clk 0:01:17.9]} 28. Nc5+ {[%clk 0:00:15.9]} 28... Kc6 {[%clk 0:01:14.2]} 29.
Nxe6 {[%clk 0:00:12.9]} 29... hxg5 {[%clk 0:01:14.3]} 30. Kxe2 {[%clk
0:00:10.5]} 30... gxf4 {[%clk 0:01:06.6]} 31. Nxg7 {[%clk 0:00:09.1]} 31... Kd7
{[%clk 0:01:06.2]} 32. h4 {[%clk 0:00:06]} 32... f3+ {[%clk 0:01:03.8]} 33. Kf2
{[%clk 0:00:05.9]} 33... d4 {[%clk 0:01:04]} 34. h5 {[%clk 0:00:05.9]} 34...
gxh5 {[%clk 0:01:03.5]} 35. gxh5 {[%clk 0:00:06.8]} 35... d3 {[%clk 0:01:03.8]}
36. e6+ {[%clk 0:00:06.7]} 36... Ke7 {[%clk 0:01:03]} 37. h6 {[%clk 0:00:06.1]}
37... d2 {[%clk 0:01:03.2]} 38. h7 {[%clk 0:00:06]} 38... d1=Q {[%clk
0:01:01.9]} 39. h8=B {[%clk 0:00:03.8]} 39... Qe2+ {[%clk 0:01:00.8]} 40. Kg3
{[%clk 0:00:03.8]} 40... Qg2+ {[%clk 0:00:59.7]} 41. Kh4 {[%clk 0:00:04.7]}
41... Rf4+ {[%clk 0:00:59.2]} 42. Kh5 {[%clk 0:00:04.9]} 42... Qg4+ {[%clk
0:00:57.9]} 43. Kh6 {[%clk 0:00:05.2]} 43... Rf6+ {[%clk 0:00:58.4]} 44. Kh7
{[%clk 0:00:04.4]} 44... Qg6+ {[%clk 0:00:59.3]} 45. Kg8 {[%clk 0:00:04.7]}
45... Rf8# {[%clk 0:01:00.2]} 0-1

[Event "Early-Titled-Tuesday-Blitz-July-09-2024"]
[Site "Chess.com"]
[Date "2024.07.09"]
[Round "10"]
[White "maroro07"]
[Black "johnmez"]
[Result "0-1"]
[WhiteElo "2347"]
[BlackElo "2266"]
[TimeControl "180+1"]
[EndTime "9:56:25 PDT"]
[Termination "johnmez won by resignation"]

1. d4 {[%clk 0:03:00.9]} 1... Nf6 {[%clk 0:02:59.8]} 2. c4 {[%clk 0:03:00.4]}
2... c5 {[%clk 0:03:00.4]} 3. d5 {[%clk 0:02:58.2]} 3... e6 {[%clk 0:03:00.8]}
4. Nc3 {[%clk 0:02:56.6]} 4... exd5 {[%clk 0:03:01.3]} 5. cxd5 {[%clk
0:02:57.2]} 5... d6 {[%clk 0:03:00.6]} 6. e4 {[%clk 0:02:56.9]} 6... g6 {[%clk
0:02:59.7]} 7. f4 {[%clk 0:02:52.1]} 7... Bg7 {[%clk 0:02:59.7]} 8. Bb5+ {[%clk
0:02:50.1]} 8... Nfd7 {[%clk 0:03:00.2]} 9. a4 {[%clk 0:02:47.8]} 9... O-O
{[%clk 0:03:00.2]} 10. Nf3 {[%clk 0:02:47]} 10... Na6 {[%clk 0:03:00.8]} 11. O-O
{[%clk 0:02:45.3]} 11... Nb4 {[%clk 0:02:50.3]} 12. Re1 {[%clk 0:02:28.2]} 12...
a6 {[%clk 0:02:27.7]} 13. Bc4 {[%clk 0:02:18.6]} 13... Re8 {[%clk 0:02:21.8]}
14. h3 {[%clk 0:02:13.7]} 14... Rb8 {[%clk 0:01:56.5]} 15. a5 {[%clk 0:01:49.2]}
15... b5 {[%clk 0:01:54.1]} 16. axb6 {[%clk 0:01:42.2]} 16... Nxb6 {[%clk
0:01:54.4]} 17. Bb3 {[%clk 0:01:36.8]} 17... c4 {[%clk 0:01:49.5]} 18. Bc2
{[%clk 0:01:36.2]} 18... Qc7 {[%clk 0:01:42.6]} 19. e5 {[%clk 0:01:30.2]} 19...
Nxc2 {[%clk 0:01:32]} 20. Qxc2 {[%clk 0:01:20.3]} 20... Bf5 {[%clk 0:01:31.8]}
21. Qd2 {[%clk 0:01:09.9]} 21... dxe5 {[%clk 0:01:22.6]} 22. d6 {[%clk
0:00:55.6]} 22... Qc5+ {[%clk 0:01:20.6]} 23. Kh2 {[%clk 0:00:48.2]} 23... exf4
{[%clk 0:01:14.4]} 24. Rxe8+ {[%clk 0:00:45]} 24... Rxe8 {[%clk 0:01:13.6]} 25.
Rxa6 {[%clk 0:00:44.8]} 25... Nd7 {[%clk 0:00:41.8]} 26. Qxf4 {[%clk 0:00:27]}
26... Ne5 {[%clk 0:00:40.2]} 27. Nd4 {[%clk 0:00:12.6]} 27... Nd3 {[%clk
0:00:33.9]} 28. Qg5 {[%clk 0:00:11]} 28... Qxd4 {[%clk 0:00:26.9]} 29. Nb5
{[%clk 0:00:07.8]} 29... Qe5+ {[%clk 0:00:25.4]} 30. Kh1 {[%clk 0:00:07]} 30...
Qxb5 {[%clk 0:00:24.9]} 0-1

[Event "Early-Titled-Tuesday-Blitz-July-09-2024"]
[Site "Chess.com"]
[Date "2024.07.09"]
[Round "10"]
[White "Rile-Man"]
[Black "dey2580"]
[Result "1-0"]
[WhiteElo "2643"]
[BlackElo "2462"]
[TimeControl "180+1"]
[EndTime "9:56:28 PDT"]
[Termination "Rile-Man won on time"]

1. d4 {[%clk 0:03:00.9]} 1... g6 {[%clk 0:02:55.6]} 2. Bf4 {[%clk 0:03:01.3]}
2... Bg7 {[%clk 0:02:55.1]} 3. c3 {[%clk 0:03:00.3]} 3... d6 {[%clk 0:02:53.6]}
4. e4 {[%clk 0:02:59.9]} 4... Nf6 {[%clk 0:02:48.2]} 5. Bd3 {[%clk 0:02:56.5]}
5... O-O {[%clk 0:02:48.2]} 6. Qd2 {[%clk 0:02:56]} 6... e5 {[%clk 0:02:45.4]}
7. Bh6 {[%clk 0:02:49.8]} 7... exd4 {[%clk 0:02:44.4]} 8. cxd4 {[%clk
0:02:48.9]} 8... Re8 {[%clk 0:02:43.7]} 9. f3 {[%clk 0:02:46.5]} 9... Nxe4
{[%clk 0:02:42.5]} 10. fxe4 {[%clk 0:02:30.6]} 10... Qh4+ {[%clk 0:02:40]} 11.
Qf2 {[%clk 0:02:31.2]} 11... Qxh6 {[%clk 0:02:36.4]} 12. Ne2 {[%clk 0:02:30.5]}
12... f5 {[%clk 0:01:49.5]} 13. O-O {[%clk 0:02:28.5]} 13... Rf8 {[%clk
0:01:41.2]} 14. Qg3 {[%clk 0:02:15.4]} 14... Nc6 {[%clk 0:01:39.9]} 15. exf5
{[%clk 0:02:06.4]} 15... Nxd4 {[%clk 0:01:39.8]} 16. fxg6 {[%clk 0:01:24.5]}
16... Nxe2+ {[%clk 0:01:28.8]} 17. Bxe2 {[%clk 0:01:25.4]} 17... Bd4+ {[%clk
0:01:08.1]} 18. Kh1 {[%clk 0:01:25.1]} 18... Rxf1+ {[%clk 0:01:07.3]} 19. Bxf1
{[%clk 0:01:26]} 19... Be5 {[%clk 0:00:47.9]} 20. gxh7+ {[%clk 0:01:23.9]} 20...
Kxh7 {[%clk 0:00:47.1]} 21. Qd3+ {[%clk 0:01:14.5]} 21... Kh8 {[%clk 0:00:43.5]}
22. g3 {[%clk 0:01:09.4]} 22... Bxb2 {[%clk 0:00:36.4]} 23. Nc3 {[%clk
0:01:09.4]} 23... Bxa1 {[%clk 0:00:17.9]} 24. Qd4+ {[%clk 0:01:09.2]} 24... Kg8
{[%clk 0:00:17]} 25. Bc4+ {[%clk 0:01:08.3]} 25... Be6 {[%clk 0:00:14.3]} 26.
Qg4+ {[%clk 0:01:07.8]} 26... Kf7 {[%clk 0:00:13.5]} 27. Qf5+ {[%clk 0:01:06.5]}
27... Ke7 {[%clk 0:00:12.4]} 28. Bxe6 {[%clk 0:01:05.1]} 28... Qxe6 {[%clk
0:00:12.1]} 29. Nd5+ {[%clk 0:01:05.2]} 29... Kd7 {[%clk 0:00:07.2]} 30. Qxe6+
{[%clk 0:01:01.3]} 30... Kxe6 {[%clk 0:00:06.5]} 31. Nxc7+ {[%clk 0:01:02.2]}
31... Ke5 {[%clk 0:00:06.4]} 32. Nxa8 {[%clk 0:01:03.1]} 32... d5 {[%clk
0:00:04.5]} 33. Kg2 {[%clk 0:01:00.9]} 33... Ke4 {[%clk 0:00:04.6]} 34. Kf2
{[%clk 0:01:01]} 34... Bd4+ {[%clk 0:00:03.6]} 35. Ke2 {[%clk 0:01:00.9]} 35...
Bg1 {[%clk 0:00:02.5]} 36. h4 {[%clk 0:00:56.3]} 36... Bh2 {[%clk 0:00:02.4]}
37. g4 {[%clk 0:00:50.4]} 1-0

[Event "Early-Titled-Tuesday-Blitz-July-09-2024"]
[Site "Chess.com"]
[Date "2024.07.09"]
[Round "10"]
[White "InitiatingASC"]
[Black "neistoviupryam"]
[Result "1-0"]
[WhiteElo "2425"]
[BlackElo "2331"]
[TimeControl "180+1"]
[EndTime "9:56:31 PDT"]
[Termination "InitiatingASC won by resignation"]

1. d4 {[%clk 0:02:54.4]} 1... d5 {[%clk 0:02:59.7]} 2. c4 {[%clk 0:02:54.4]}
2... e6 {[%clk 0:02:59.4]} 3. Nf3 {[%clk 0:02:53.5]} 3... f5 {[%clk 0:02:56.6]}
4. g3 {[%clk 0:02:50.4]} 4... c6 {[%clk 0:02:53.4]} 5. Bg2 {[%clk 0:02:49]} 5...
Nf6 {[%clk 0:02:53.3]} 6. O-O {[%clk 0:02:49.8]} 6... Bd6 {[%clk 0:02:53.4]} 7.
b3 {[%clk 0:02:50.2]} 7... Ne4 {[%clk 0:02:52.2]} 8. Bb2 {[%clk 0:02:48.1]} 8...
h5 {[%clk 0:02:48.9]} 9. Nbd2 {[%clk 0:02:43]} 9... h4 {[%clk 0:02:49.1]} 10.
Nxe4 {[%clk 0:02:39.2]} 10... dxe4 {[%clk 0:02:32.1]} 11. Ne5 {[%clk 0:02:38.9]}
11... hxg3 {[%clk 0:02:30.5]} 12. hxg3 {[%clk 0:02:29.9]} 12... Qg5 {[%clk
0:02:23.3]} 13. Bc1 {[%clk 0:01:59.4]} 13... Qh5 {[%clk 0:02:21.7]} 14. f4
{[%clk 0:01:57.1]} 14... Nd7 {[%clk 0:02:14.3]} 15. Kf2 {[%clk 0:01:46]} 15...
Bxe5 {[%clk 0:01:55.5]} 16. Rh1 {[%clk 0:01:41.5]} 16... Bxd4+ {[%clk
0:01:41.8]} 17. Qxd4 {[%clk 0:01:37.5]} 17... Qxh1 {[%clk 0:01:39.3]} 18. Bxh1
{[%clk 0:01:37]} 18... Rxh1 {[%clk 0:01:37.8]} 19. Qxg7 {[%clk 0:01:36]} 19...
c5 {[%clk 0:01:24.3]} 20. Qg8+ {[%clk 0:01:14.7]} 20... Ke7 {[%clk 0:01:23.4]}
21. Bb2 {[%clk 0:01:14.3]} 21... Rxa1 {[%clk 0:01:21.2]} 22. Bxa1 {[%clk
0:01:15.2]} 22... b6 {[%clk 0:01:16.8]} 23. Be5 {[%clk 0:01:06.8]} 23... Nxe5
{[%clk 0:01:11.1]} 24. fxe5 {[%clk 0:01:06.5]} 24... a5 {[%clk 0:01:01.2]} 25.
a4 {[%clk 0:01:04.9]} 25... Kd7 {[%clk 0:00:55.4]} 26. Ke3 {[%clk 0:00:58]}
26... Kc7 {[%clk 0:00:51.1]} 27. Qf8 {[%clk 0:00:50.9]} 27... Rb8 {[%clk
0:00:48.2]} 28. Qe7+ {[%clk 0:00:38.9]} 28... Bd7 {[%clk 0:00:46.5]} 29. Qd6+
{[%clk 0:00:39]} 29... Kc8 {[%clk 0:00:44.7]} 30. Kf4 {[%clk 0:00:35.7]} 30...
Rb7 {[%clk 0:00:42.2]} 31. Kg5 {[%clk 0:00:32.9]} 31... Kd8 {[%clk 0:00:32.8]}
32. Kf6 {[%clk 0:00:29.3]} 32... Kc8 {[%clk 0:00:31.9]} 33. Qf8+ {[%clk
0:00:26.1]} 33... Kc7 {[%clk 0:00:29.5]} 34. Ke7 {[%clk 0:00:25.5]} 34... Rb8
{[%clk 0:00:22.6]} 35. Qxb8+ {[%clk 0:00:21.3]} 35... Kxb8 {[%clk 0:00:22.8]}
36. Kxd7 {[%clk 0:00:22]} 36... b5 {[%clk 0:00:23.4]} 37. cxb5 {[%clk 0:00:22]}
37... Kb7 {[%clk 0:00:18.7]} 38. Kxe6 {[%clk 0:00:21.4]} 38... Kb6 {[%clk
0:00:19]} 39. Kxf5 {[%clk 0:00:19.9]} 39... c4 {[%clk 0:00:19.1]} 40. bxc4
{[%clk 0:00:20.2]} 40... Kc5 {[%clk 0:00:19.4]} 41. e6 {[%clk 0:00:20.6]} 1-0